fUST/lending_fUST_20240302
["ID","MTS","AMOUNT","RATE_DAILY","PERIOD"]
[316042547,1709334639611,-500.0,0.00020699,2]
[316042548,1709334639620,-399.38338015,0.00020699,2]
[316042549,1709334639629,-500.0,0.00020699,2]
[316042550,1709334639638,-500.0,0.00020699,2]
[316042551,1709334639647,-761.48,0.00020699,2]
[316042552,1709334639656,-761.48,0.00020699,2]
[316042553,1709334639665,-500.0,0.00020699,2]
[316042554,1709334639674,-500.0,0.00020699,2]
[316042555,1709334639683,-500.0,0.00020699,2]
[316042556,1709334639693,-500.0,0.00020699,2]
[316042557,1709334639702,-10257.97,0.000207,2]
[316042558,1709334639711,-10257.97,0.000207,2]
[316042559,1709334639720,-10257.97,0.000207,2]
[316042560,1709334639729,-10257.97,0.000207,2]
[316042561,1709334639738,-10257.97,0.000207,2]
[316042562,1709334639747,-10257.97,0.000207,2]
[316042563,1709334639756,-2901.72,0.00020735,2]
[316042564,1709334639765,-1193.89,0.00020735,2]
[316042565,1709334639774,-160.59,0.00020735,2]
[316042566,1709334639782,-936.97,0.00020735,2]
[316042567,1709334639791,-500.0,0.00020735,2]
[316042568,1709334639800,-500.0,0.00020735,2]
[316042569,1709334639809,-761.48,0.00020735,2]
[316042570,1709334639819,-500.0,0.00020735,2]
[316042571,1709334639828,-10257.97,0.00020736,2]
[316042572,1709334639837,-500.0,0.00020759,2]
[316042573,1709334639846,-502.81,0.0002076,2]
[316042574,1709334639855,-500.0,0.0002076,2]
[316042575,1709334639864,-500.0,0.0002076,2]
[316042576,1709334639877,-761.48,0.0002076,2]
[316042577,1709334639886,-500.0,0.0002076,2]
[316042578,1709334639895,-500.0,0.0002076,2]
[316042579,1709334639904,-37007.4363241,0.00020761,4]
[316042580,1709334639915,-3699.08098645,0.00020761,4]
[316042581,1709334639926,-27938.67742508,0.00020761,4]
[316042582,1709334639936,-50000.0,0.00020761,2]
[316042583,1709334639947,-87880.46367455,0.00020761,5]
[316042584,1709334639956,-2901.72,0.00020804,2]
[316042585,1709334639966,-1193.89,0.00020804,2]
[316042586,1709334639975,-936.97,0.00020804,2]
[316042587,1709334639984,-539.10136506,0.00020805,2]
[316042588,1709334639994,-2520.81311749,0.00020805,2]
[316042589,1709334640004,-396.90778404,0.00020805,2]
[316042590,1709334640013,-289.87585075,0.00020805,2]
[316042591,1709334640022,-528.41827294,0.00020805,2]
[316042592,1709334640030,-9653.70548873,0.00020811,2]
[316042593,1709334640041,-1837.36104744,0.00020814,3]
[316042594,1709334640050,-7211.8490806,0.00020818,3]
[316042595,1709334640059,-19788.81414143,0.00020818,3]
[316042596,1709334640069,-729.06157363,0.00020818,2]
[316042597,1709334640078,-10257.97,0.00020889,2]
[316042598,1709334640087,-502.81,0.00020995,2]
[316042599,1709334640096,-8234.00193465,0.00020995,2]
[316042600,1709334640105,-2901.72,0.00020996,2]
[316042601,1709334640114,-2901.72,0.00020996,2]
[316042602,1709334640123,-1200.77,0.00020996,2]
[316042603,1709334640133,-1200.77,0.00020996,2]
[316042604,1709334640143,-1193.89,0.00020996,2]
[316042605,1709334640152,-1193.89,0.00020996,2]
[316042606,1709334640161,-502.81,0.00020996,2]
[316042607,1709334640170,-500.0,0.00020996,2]
[316042608,1709334640180,-936.97,0.00020996,2]
[316042609,1709334640189,-936.97,0.00020996,2]
[316042610,1709334640199,-500.0,0.00020996,2]
[316042611,1709334640208,-500.0,0.00020996,2]
[316042612,1709334640217,-500.0,0.00020996,2]
[316042613,1709334640226,-500.0,0.00020996,2]
[316042614,1709334640234,-761.48,0.00020996,2]
[316042615,1709334640244,-761.48,0.00020996,2]
[316042616,1709334640253,-500.0,0.00020996,2]
[316042617,1709334640262,-500.0,0.00020996,2]
[316042618,1709334640357,-500.0,0.00020996,2]
[316042620,1709334640366,-500.0,0.00020996,2]
[316042622,1709334640375,-75989.81300403,0.00020997,2]
[316042623,1709334640384,-1200.77,0.00020997,2]
[316042625,1709334640393,-502.81,0.00020997,2]
[316042627,1709334640402,-500.0,0.00020997,2]
[316042628,1709334640411,-500.0,0.00020997,2]
[316042629,1709334640420,-18647.96991955,0.00020998,2]
[316042630,1709334640430,-300.0,0.00021,9]
[316042631,1709334640439,-2612.3284,0.00021119,7]
[316042632,1709334640448,-500.0,0.00021128,2]
[316042633,1709334640457,-500.0,0.00021128,2]
[316042634,1709334640466,-761.48,0.00021128,2]
[316042635,1709334640475,-620.76991984,0.00021816,2]
[316042637,1709334640485,-1147.7371501,0.000219,2]
[316042638,1709334640493,-400.24472666,0.00021918,2]
[316042639,1709334640502,-327.22275751,0.00022,2]
[316042640,1709334640511,-157.14741337,0.00022062,2]
[316042641,1709334640520,-1724.21211612,0.00022063,2]
[316042642,1709334640529,-200.7008514,0.00022356,2]
[316042643,1709334640538,-217.9000002,0.00022356,2]
[316042644,1709334640547,-401.2036365,0.00022356,2]
[316042645,1709334640557,-153.0,0.00022356,2]
[316042646,1709334640566,-300.0,0.000225,10]
[316042647,1709334640574,-1212.63051694,0.00022686,2]
[316042648,1709334640583,-620.03849599,0.00022907,2]
[316042649,1709334640593,-2788.91634066,0.00023,2]
[316042650,1709334640601,-1200.77,0.00023039,2]
[316042651,1709334640610,-225.036,0.0002304,4]
[316042652,1709334640618,-225.036,0.0002304,4]
[316042653,1709334640627,-225.037,0.0002304,4]
[316042654,1709334640635,-225.036,0.0002304,4]
[316042655,1709334640644,-225.036,0.0002304,4]
[316042656,1709334640653,-500.0,0.00023075,2]
[316042657,1709334640662,-2901.72,0.00023076,2]
[316042658,1709334640670,-1193.89,0.00023076,2]
[316042659,1709334640679,-502.81,0.00023076,2]
[316042660,1709334640688,-10257.97,0.00023076,2]
[316042661,1709334640697,-936.97,0.00023076,2]
[316042662,1709334640706,-287.5,0.00023076,2]
[316042663,1709334640715,-500.0,0.00023076,2]
[316042665,1709334640724,-500.0,0.00023076,2]
[316042666,1709334640733,-761.48,0.00023076,2]
[316042667,1709334640742,-761.48,0.00023076,2]
[316042668,1709334640751,-500.0,0.00023076,2]
[316042669,1709334640760,-500.0,0.00023076,2]
[316042670,1709334640769,-500.0,0.00023076,2]
[316042671,1709334640779,-10257.97,0.00023077,2]
[316042672,1709334640789,-10257.97,0.00023077,2]
[316042673,1709334640798,-10257.97,0.00023077,2]
[316042674,1709334640807,-153.0,0.00023178,2]
[316042675,1709334640816,-153.0,0.00023178,2]
[316042677,1709334640824,-10257.97,0.00023183,2]
[316042678,1709334640833,-5000.0,0.00023199,5]
[316042679,1709334640842,-5000.0,0.00023204,5]
[316042681,1709334640851,-5000.0,0.00023204,5]
[316042683,1709334640859,-1000.0,0.00023219,5]
[316042684,1709334640869,-1000.0,0.00023221,5]
[316042685,1709334640878,-1000.0,0.00023222,5]
[316042686,1709334640890,-272.22,0.000234,7]
[316042687,1709334640899,-690.22974463,0.0002342,2]
[316042688,1709334640908,-500.0,0.00023455,2]
[316042689,1709334640918,-500.0,0.00023455,2]
[316042690,1709334640927,-500.0,0.00023455,2]
[316042691,1709334640936,-50000.0,0.00023456,5]
[316042692,1709334640946,-690.22974457,0.00023473,2]
[316042693,1709334640955,-5000.0,0.0002351,5]
[316042694,1709334640965,-821.32,0.0002352,4]
[316042695,1709334640977,-821.321,0.0002352,4]
[316042696,1709334640986,-821.321,0.0002352,4]
[316042697,1709334640994,-821.321,0.0002352,4]
[316042698,1709334641003,-821.321,0.0002352,4]
[316042699,1709334641012,-690.22974457,0.00023527,2]
[316042700,1709334641020,-690.22974457,0.0002358,2]
[316042701,1709334641029,-500.0,0.00023595,2]
[316042702,1709334641038,-761.48,0.00023595,2]
[316042703,1709334641046,-500.0,0.00023595,2]
[316042704,1709334641056,-12307.46517883,0.00023596,3]
[316042705,1709334641065,-690.22974457,0.00023633,2]
[316042706,1709334641075,-690.22974457,0.00023687,2]
[316042707,1709334641084,-690.22974457,0.0002374,2]
[316042708,1709334641093,-690.22974457,0.00023793,2]
[316042709,1709334641103,-690.22974457,0.00023847,2]
[316042710,1709334641113,-234.5338,0.00023879,2]
[316042711,1709334641122,-2901.72,0.00023897,2]
[316042712,1709334641131,-1193.89,0.00023897,2]
[316042713,1709334641140,-936.97,0.00023897,2]
[316042714,1709334641149,-2420.95273948,0.000239,2]
[316042715,1709334641158,-690.22974457,0.000239,2]
[316042716,1709334641168,-502.81,0.00023993,2]
[316042717,1709334641177,-500.0,0.00023995,2]
[316042718,1709334641187,-10257.97,0.00023996,2]
[316042719,1709334641197,-10257.97,0.00023996,2]
[316042720,1709334641206,-10257.97,0.00023996,2]
[316042721,1709334641216,-10257.97,0.00023996,2]
[316042722,1709334641225,-10258.20574546,0.00023996,2]
[316042723,1709334641234,-500.0,0.00023997,2]
[316042724,1709334641243,-761.48,0.00023997,2]
[316042725,1709334641252,-500.0,0.00023997,2]
[316042726,1709334641261,-500.0,0.00023997,2]
[316042727,1709334641271,-317.0110775,0.00023998,2]
[316042728,1709334641280,-155.05892239,0.00023998,2]
[316042729,1709334641291,-200.08769918,0.00023998,2]
[316042730,1709334641301,-1171.69564882,0.00023998,2]
[316042731,1709334641310,-1654.30348637,0.00023998,2]
[316042732,1709334641320,-205.9203372,0.00023998,2]
[316042733,1709334641329,-173.93222042,0.00023998,2]
[316042734,1709334641338,-1992.97014433,0.00023998,2]
[316042735,1709334641347,-198.6077684,0.00023998,2]
[316042736,1709334641356,-211.29666627,0.00023998,2]
[316042737,1709334641365,-812.22817838,0.00023998,2]
[316042738,1709334641374,-198.32516916,0.00023998,2]
[316042739,1709334641383,-1405.80312036,0.00023998,2]
[316042740,1709334641393,-197.5903061,0.00023998,2]
[316042741,1709334641402,-179.22431201,0.00023998,2]
[316042742,1709334641411,-508.84911227,0.00023998,2]
[316042743,1709334641420,-523.71030091,0.00023998,3]
[316042744,1709334641429,-192.42679543,0.00023998,2]
[316042745,1709334641438,-207.97712337,0.00023998,2]
[316042746,1709334641446,-247.69144409,0.00023998,2]
[316042747,1709334641456,-176.94616105,0.00023998,2]
[316042748,1709334641465,-159.87982714,0.00023998,2]
[316042749,1709334641474,-508.95946117,0.00023998,2]
[316042750,1709334641484,-595.5942201,0.00023998,2]
[316042751,1709334641494,-240.49886462,0.00023998,2]
[316042752,1709334641503,-158.82433248,0.00023998,2]
[316042753,1709334641512,-441.36557175,0.00023998,2]
[316042754,1709334641522,-169.08281547,0.00023998,2]
[316042755,1709334641531,-400.0,0.00023998,2]
[316042756,1709334641540,-202.60745563,0.00023998,2]
[316042757,1709334641549,-267.21087934,0.00023998,2]
[316042758,1709334641559,-429.41243131,0.00023998,2]
[316042759,1709334641568,-237.55164317,0.00023998,2]
[316042760,1709334641577,-205.34317386,0.00023998,2]
[316042761,1709334641586,-155.2833993,0.00023998,2]
[316042762,1709334641596,-219.95258249,0.00023998,2]
[316042763,1709334641606,-10098.67327328,0.00023998,2]
[316042764,1709334641615,-160.8702495,0.00023998,2]
[316042765,1709334641625,-298.82206259,0.00023998,2]
[316042766,1709334641634,-263.21964131,0.00023998,7]
[316042767,1709334641644,-155.11478494,0.00023998,2]
[316042768,1709334641655,-562.47634038,0.00023998,2]
[316042769,1709334641665,-298.61808289,0.00023998,2]
[316042770,1709334641674,-260.50442355,0.00023998,2]
[316042771,1709334641684,-155.07133281,0.00023998,2]
[316042772,1709334641694,-282.54840723,0.00023998,2]
[316042773,1709334641706,-200.54373759,0.00023998,2]
[316042774,1709334641715,-155.08219356,0.00023998,2]
[316042775,1709334641725,-280.37029672,0.00023998,2]
[316042776,1709334641734,-181.85299433,0.00023998,2]
[316042777,1709334641743,-160.40689308,0.00023998,2]
[316042778,1709334641753,-478.73760126,0.00023998,2]
[316042779,1709334641762,-295.87885382,0.00023998,2]
[316042780,1709334641771,-162.11854936,0.00023998,2]
[316042781,1709334641780,-11178.30135023,0.00023998,2]
[316042782,1709334641789,-224.33420636,0.00023998,2]
[316042783,1709334641798,-155.22494037,0.00023998,2]
[316042784,1709334641807,-285.52119037,0.00023998,2]
[316042785,1709334641816,-262.13577343,0.00023998,2]
[316042786,1709334641826,-300.2820096,0.00023998,2]
[316042787,1709334641836,-300.89577802,0.00023998,2]
[316042788,1709334641845,-282.52764566,0.00023998,2]
[316042789,1709334641854,-206.11586222,0.00023998,2]
[316042790,1709334641863,-200.0,0.00023998,2]
[316042791,1709334641878,-200.01171087,0.00023998,2]
[316042792,1709334641887,-300.22703876,0.00023998,2]
[316042793,1709334641897,-185.40185691,0.00023998,2]
[316042794,1709334641906,-324.72973504,0.00023998,2]
[316042795,1709334641915,-155.25921865,0.00023998,2]
[316042796,1709334641925,-387.63160275,0.00023998,2]
[316042797,1709334641934,-263.31692282,0.00023998,2]
[316042798,1709334641943,-371.14057692,0.00023998,2]
[316042799,1709334641955,-201.7351925,0.00023998,2]
[316042800,1709334641965,-200.85706016,0.00023998,2]
[316042801,1709334641974,-169.66,0.00023998,2]
[316042802,1709334641983,-1951.08,0.00023998,2]
[316042803,1709334641992,-1951.08,0.00023998,2]
[316042804,1709334642002,-1951.08,0.00023998,2]
[316042805,1709334642010,-1951.08,0.00023998,2]
[316042806,1709334642019,-1951.08,0.00023998,2]
[316042807,1709334642029,-1951.08,0.00023998,2]
[316042808,1709334642038,-2901.72,0.00023998,2]
[316042809,1709334642047,-1200.77,0.00023998,2]
[316042810,1709334642056,-1193.89,0.00023998,2]
[316042811,1709334642065,-502.81,0.00023998,2]
[316042812,1709334642074,-936.97,0.00023998,2]
[316042813,1709334642084,-412.33,0.00023998,2]
[316042814,1709334642093,-761.48,0.00023998,2]
[316042815,1709334642102,-500.0,0.00023998,2]
[316042816,1709334642112,-500.0,0.00023998,2]
[316042817,1709334642122,-252.77107986,0.00023998,2]
[316042818,1709334642131,-500.0,0.00023998,2]
[316042819,1709334642139,-500.0,0.00023998,2]
[316042820,1709334642148,-500.0,0.00023998,2]
[316042821,1709334642158,-500.0,0.00023998,2]
[316042822,1709334642167,-500.0,0.00023998,2]
[316042823,1709334642176,-284.32005205,0.00023998,2]
[316042824,1709334642185,-20840.03860396,0.00023999,2]
[316042825,1709334642194,-214.38200257,0.00023999,2]
[316042826,1709334642205,-500.0,0.00023999,2]
[316042827,1709334642215,-439.41632403,0.00023999,2]
[316042828,1709334642224,-500.0,0.00023999,2]
[316042829,1709334642234,-500.0,0.00023999,2]
[316042830,1709334642243,-500.0,0.00023999,2]
[316042831,1709334642253,-500.0,0.00023999,2]
[316042832,1709334642264,-553.10293066,0.00023999,2]
[316042833,1709334642273,-500.0,0.00023999,2]
[316042834,1709334642282,-500.0,0.00023999,2]
[316042835,1709334642291,-500.0,0.00023999,2]
[316042836,1709334642301,-500.0,0.00023999,2]
[316042837,1709334642310,-500.0,0.00023999,2]
[316042838,1709334642319,-500.0,0.00023999,2]
[316042839,1709334642329,-500.0,0.00023999,2]
[316042840,1709334642338,-215.03875568,0.00023999,2]
[316042841,1709334642347,-500.0,0.00023999,2]
[316042842,1709334642356,-500.0,0.00023999,2]
[316042843,1709334642368,-500.0,0.00023999,2]
[316042844,1709334642377,-500.0,0.00023999,2]
[316042845,1709334642386,-188.32128172,0.00023999,2]
[316042846,1709334642396,-307.1982224,0.00023999,2]
[316042847,1709334642405,-500.0,0.00023999,2]
[316042848,1709334642414,-500.0,0.00023999,2]
[316042849,1709334642423,-500.0,0.00023999,2]
[316042850,1709334642432,-379.901256,0.00023999,2]
[316042851,1709334642441,-500.0,0.00023999,2]
[316042852,1709334642451,-2901.72,0.00023999,2]
[316042853,1709334642460,-2901.72,0.00023999,2]
[316042854,1709334642469,-2901.72,0.00023999,2]
[316042855,1709334642479,-2901.72,0.00023999,2]
[316042856,1709334642489,-2901.72,0.00023999,2]
[316042857,1709334642498,-2901.72,0.00023999,2]
[316042858,1709334642508,-2901.72,0.00023999,2]
[316042859,1709334642517,-2901.72,0.00023999,2]
[316042860,1709334642526,-2901.72,0.00023999,2]
[316042861,1709334642535,-2901.72,0.00023999,2]
[316042862,1709334642545,-2901.72,0.00023999,2]
[316042863,1709334642554,-2901.72,0.00023999,2]
[316042864,1709334642562,-2901.72,0.00023999,2]
[316042865,1709334642572,-2901.72,0.00023999,2]
[316042866,1709334642581,-2901.80003786,0.00023999,2]
[316042867,1709334642590,-1200.77,0.00023999,2]
[316042868,1709334642599,-1200.77,0.00023999,2]
[316042869,1709334642608,-1200.77,0.00023999,2]
[316042870,1709334642617,-1200.77,0.00023999,2]
[316042871,1709334642627,-1200.77,0.00023999,2]
[316042872,1709334642636,-1200.77,0.00023999,2]
[316042873,1709334642645,-1200.77,0.00023999,2]
[316042874,1709334642654,-1200.77,0.00023999,2]
[316042875,1709334642663,-1200.77,0.00023999,2]
[316042876,1709334642672,-1200.77,0.00023999,2]
[316042877,1709334642681,-1200.77,0.00023999,2]
[316042878,1709334642691,-1200.77,0.00023999,2]
[316042879,1709334642701,-1200.77,0.00023999,2]
[316042881,1709334642710,-1200.77,0.00023999,2]
[316042882,1709334642719,-1200.77,0.00023999,2]
[316042883,1709334642727,-1200.77,0.00023999,2]
[316042884,1709334642736,-1200.77,0.00023999,2]
[316042885,1709334642745,-1200.79499399,0.00023999,2]
[316042886,1709334642832,-1193.89,0.00023999,2]
[316042887,1709334642841,-1193.89,0.00023999,2]
[316042888,1709334642850,-1193.89,0.00023999,2]
[316042889,1709334642859,-1193.89,0.00023999,2]
[316042890,1709334642869,-1193.89,0.00023999,2]
[316042891,1709334642878,-1193.89,0.00023999,2]
[316042892,1709334642890,-1193.89,0.00023999,2]
[316042893,1709334642898,-1193.89,0.00023999,2]
[316042894,1709334642907,-1193.89,0.00023999,2]
[316042895,1709334642916,-1193.89,0.00023999,2]
[316042896,1709334642926,-1193.89,0.00023999,2]
[316042897,1709334642935,-1193.89,0.00023999,2]
[316042898,1709334642944,-1193.89,0.00023999,2]
[316042900,1709334642956,-1193.89,0.00023999,2]
[316042902,1709334642965,-1194.03613509,0.00023999,2]
[316042903,1709334642975,-502.81,0.00023999,2]
[316042904,1709334642984,-502.81,0.00023999,2]
[316042905,1709334642992,-502.81,0.00023999,2]
[316042906,1709334643001,-502.81,0.00023999,2]
[316042907,1709334643010,-502.81,0.00023999,2]
[316042908,1709334643019,-502.81,0.00023999,2]
[316042909,1709334643028,-502.81,0.00023999,2]
[316042910,1709334643038,-502.81,0.00023999,2]
[316042911,1709334643047,-502.81,0.00023999,2]
[316042912,1709334643055,-502.81,0.00023999,2]
[316042914,1709334643065,-502.81,0.00023999,2]
[316042915,1709334643074,-502.81,0.00023999,2]
[316042916,1709334643083,-502.81,0.00023999,2]
[316042917,1709334643092,-503.04,0.00023999,2]
[316042918,1709334643101,-936.97,0.00023999,2]
[316042919,1709334643110,-936.97,0.00023999,2]
[316042920,1709334643119,-936.97,0.00023999,2]
[316042922,1709334643129,-936.97,0.00023999,2]
[316042924,1709334643138,-936.97,0.00023999,2]
[316042925,1709334643147,-936.97,0.00023999,2]
[316042926,1709334643157,-936.97,0.00023999,2]
[316042927,1709334643166,-936.97,0.00023999,2]
[316042928,1709334643177,-936.97,0.00023999,2]
[316042929,1709334643187,-936.97,0.00023999,2]
[316042930,1709334643196,-936.97,0.00023999,2]
[316042931,1709334643206,-936.97,0.00023999,2]
[316042932,1709334643215,-936.97,0.00023999,2]
[316042933,1709334643225,-936.97,0.00023999,2]
[316042934,1709334643234,-937.11711065,0.00023999,2]
[316042935,1709334643244,-761.48,0.00023999,2]
[316042936,1709334643253,-761.48,0.00023999,2]
[316042937,1709334643262,-761.48,0.00023999,2]
[316042938,1709334643272,-761.48,0.00023999,2]
[316042939,1709334643281,-761.48,0.00023999,2]
[316042940,1709334643291,-761.48,0.00023999,2]
[316042941,1709334643301,-761.48,0.00023999,2]
[316042942,1709334643310,-761.69245189,0.00023999,2]
[316042943,1709334643319,-88373.61103646,0.00024,5]
[316042944,1709334643361,-395.92,0.00024,5]
[316044578,1709335832435,-300.0,0.00019082,2]
[316044579,1709335832445,-94.70362969,0.00019082,2]
[316045129,1709335838321,-2084.44982331,0.000189,2]
[316045130,1709335838331,-1785.06189212,0.00019082,2]
[316045131,1709335838342,-325.22160362,0.00019178,2]
[316045132,1709335838351,-172.303321,0.00019178,2]
[316045133,1709335838361,-166.666666,0.00019178,2]
[316045134,1709335838370,-238.53127687,0.0002,2]
[316045135,1709335838379,-198.20586226,0.00020547,2]
[316045136,1709335838389,-501.88399839,0.00020547,2]
[316045137,1709335838402,-500.39180037,0.00020547,2]
[316045138,1709335838430,-500.0,0.00020547,2]
[316045139,1709335838440,-500.0,0.00020547,2]
[316045140,1709335838449,-62.21171171,0.00020547,2]
[316045141,1709335838467,-437.78828829,0.00020547,2]
[316045142,1709335838476,-500.0,0.00020547,2]
[316045144,1709335838486,-500.0,0.00020547,2]
[316045145,1709335838496,-500.0,0.00020547,2]
[316045146,1709335838505,-500.0,0.00020547,2]
[316045147,1709335838514,-569.48293923,0.00020547,2]
[316045148,1709335838523,-500.35008704,0.00020547,2]
[316045149,1709335838533,-500.0,0.00020547,2]
[316045150,1709335838542,-500.0,0.00020547,2]
[316045151,1709335838552,-228.7289358,0.00020547,2]
[316045152,1709335838564,-271.2710642,0.00020547,2]
[316045153,1709335838573,-500.0,0.00020547,2]
[316045154,1709335838582,-500.0,0.00020547,2]
[316045155,1709335838591,-500.0,0.00020547,2]
[316045156,1709335838600,-308.15816311,0.00020547,2]
[316045157,1709335838609,-512.08466499,0.00020547,2]
[316045158,1709335838618,-500.0,0.00020547,2]
[316045159,1709335838627,-500.0,0.00020547,2]
[316045160,1709335838636,-508.6,0.00020547,2]
[316045161,1709335838645,-500.0,0.00020547,2]
[316045162,1709335838655,-500.0,0.00020547,2]
[316045163,1709335838665,-500.0,0.00020547,2]
[316045164,1709335838674,-500.0,0.00020547,2]
[316045165,1709335838683,-500.0,0.00020547,2]
[316045166,1709335838692,-500.0,0.00020547,2]
[316045167,1709335838701,-500.0,0.00020547,2]
[316045168,1709335838710,-500.0,0.00020547,2]
[316045169,1709335838719,-500.0,0.00020547,2]
[316045170,1709335838728,-500.0,0.00020547,2]
[316045171,1709335838738,-500.0,0.00020547,2]
[316045172,1709335838747,-500.0,0.00020547,2]
[316045173,1709335838756,-500.0,0.00020547,2]
[316045174,1709335838766,-271.92,0.00020547,2]
[316045175,1709335838775,-500.0,0.00020547,2]
[316045176,1709335838784,-500.0,0.00020547,2]
[316045177,1709335838793,-500.0,0.00020547,2]
[316045178,1709335838803,-698.11,0.00020547,2]
[316045179,1709335838812,-500.0,0.00020547,2]
[316045180,1709335838821,-836.94,0.00020547,2]
[316045181,1709335838830,-690.81,0.00020547,2]
[316045182,1709335838839,-500.0,0.00020659,2]
[316045183,1709335838848,-500.0,0.00020659,2]
[316045184,1709335838858,-500.0,0.00020659,2]
[316045185,1709335838867,-500.0,0.00020659,2]
[316045186,1709335838876,-500.0,0.00020659,2]
[316045187,1709335838886,-500.0,0.00020659,2]
[316045188,1709335838894,-869.16,0.00020659,2]
[316045189,1709335838903,-500.0,0.00020659,2]
[316045190,1709335838912,-500.0,0.0002066,2]
[316045191,1709335838921,-629.91,0.0002066,2]
[316045192,1709335838930,-1257.44,0.00020677,2]
[316045193,1709335838938,-3534.52,0.00020677,2]
[316045194,1709335838947,-500.0,0.00020677,2]
[316045195,1709335838956,-1231.94,0.00020677,2]
[316045196,1709335838965,-950.29,0.00020677,2]
[316045197,1709335838975,-500.0,0.00020698,2]
[316045198,1709335838984,-500.0,0.00020698,2]
[316045199,1709335838992,-500.0,0.00020698,2]
[316045200,1709335839003,-500.0,0.00020698,2]
[316045201,1709335839012,-698.11,0.00020698,2]
[316045202,1709335839021,-500.0,0.00020698,2]
[316045203,1709335839030,-836.94,0.00020698,2]
[316045204,1709335839039,-500.0,0.00020699,2]
[316045205,1709335839048,-500.0,0.00020699,2]
[316045206,1709335839057,-500.0,0.00020734,2]
[316045207,1709335839066,-500.0,0.0002076,2]
[316045208,1709335839075,-500.0,0.0002076,2]
[316045209,1709335839084,-500.0,0.0002076,2]
[316045210,1709335839094,-500.0,0.0002076,2]
[316045211,1709335839103,-500.0,0.0002076,2]
[316045212,1709335839113,-169.50945208,0.00020765,2]
[316045213,1709335839122,-454.36,0.0002081,2]
[316045214,1709335839132,-1155.43,0.00020832,3]
[316045215,1709335839141,-1982.17,0.00020842,3]
[316045216,1709335839150,-1187.62,0.00020852,2]
[316045217,1709335839159,-1187.62,0.00020852,2]
[316045218,1709335839169,-1187.62,0.00020852,2]
[316045219,1709335839178,-1187.62,0.00020852,2]
[316045220,1709335839187,-500.0,0.00020852,2]
[316045221,1709335839197,-500.0,0.00020852,2]
[316045222,1709335839206,-500.0,0.00020852,2]
[316045223,1709335839218,-500.0,0.00020852,2]
[316045224,1709335839227,-698.11,0.00020852,2]
[316045225,1709335839236,-500.0,0.00020852,2]
[316045226,1709335839245,-836.94,0.00020852,2]
[316045227,1709335839255,-690.81,0.00020852,2]
[316045228,1709335839264,-690.81,0.00020852,2]
[316045229,1709335839273,-690.81,0.00020852,2]
[316045230,1709335839282,-690.81,0.00020852,2]
[316045231,1709335839294,-943.16784258,0.00020853,2]
[316045232,1709335839304,-14510.31397986,0.00020853,2]
[316045233,1709335839313,-50000.0,0.00020853,2]
[316045234,1709335839322,-94446.55988219,0.00020853,4]
[316045235,1709335839331,-3650.14206281,0.00020853,2]
[316045236,1709335839340,-500.0,0.00020865,2]
[316045237,1709335839349,-500.0,0.00020865,2]
[316045239,1709335839359,-500.0,0.00020865,2]
[316045240,1709335839368,-500.0,0.00020865,2]
[316045241,1709335839377,-500.0,0.00020865,2]
[316045242,1709335839387,-500.0,0.00020865,2]
[316045243,1709335839407,-869.16,0.00020865,2]
[316045244,1709335839417,-500.0,0.00020865,2]
[316045245,1709335839426,-690.81,0.00020865,2]